Cogmind - Beta 16 @@@ ROGUE MODE // 2025.12.06 @ 20:36:11 Player: RHAHI Result: Self-destructed Performance ------------- Evolutions (3) 1500 Regions Visited (10) 2000 Robots Destroyed (130) 650 Value Destroyed (5132) 5132 Prototype IDs (33) 660 Alien Tech Used (0) 0 Bonus (1806) 1806 TOTAL SCORE: 11748 Bonus ------- High Alert Combat Kills 400 Follower Combat Kills 78 Entered Garrisons 400 Used RIF Installer 1000 Aligned with FarCom 300 Friendly Fire -372 Cogmind --------- Core Integrity 600/700 Matter 263/300 Energy 291/300 System Corruption 1% Temperature Cool (0) Movement Treading (160) Location -7/Waste Parts ------- > --- POWER (1) -------- Enhanced Nuclear Core > --- PROPULSION (4) --- Heavy Treads Heavy Treads > --- UTILITY (5) ------ Improved Cooling System Huge Storage Unit Advanced Sensor Array Core Analyzer Hardlight Generator > --- WEAPON (3) ------- Beamcaster Beamcaster Gauss Rifle > --- INVENTORY (25) --- Antimatter Reactor Heavy Treads Heavy Treads Improved Cooling System Improved Sensor Array Modified TNC Advanced ECM Suite Improved Light Armor Plating Improved Light Armor Plating Damper Plating Authchip [R/NC] Relay Coupler [NC] (23) High-powered Tractor Beam Recalibrator Beamcaster Plasma Cannon Guided Plasma Cannon Firepult Remote Datajack Peak State ------------ > --- POWER ------------ Enhanced Nuclear Core > --- PROPULSION ------- Heavy Treads Heavy Treads > --- UTILITY ---------- Improved Cooling System Huge Storage Unit Advanced Sensor Array Core Analyzer Hardlight Generator > --- WEAPON ----------- Beamcaster Beamcaster Gauss Rifle > --- INVENTORY -------- Antimatter Reactor Heavy Treads Heavy Treads Improved Cooling System Improved Sensor Array Modified TNC Advanced ECM Suite Improved Light Armor Plating Improved Light Armor Plating Damper Plating Authchip [R/NC] Relay Coupler [NC] High-powered Tractor Beam Recalibrator Beamcaster Plasma Cannon Guided Plasma Cannon Firepult Remote Datajack [Rating: 73] Favorites ----------- Power Enhanced Nuclear Core Engine Improved Ion Engine Power Core Enhanced Nuclear Core Propulsion Light Treads Treads Light Treads Leg Aluminum Leg Hover Unit Gravmag System Flight Unit Flight Unit Utility Seismic Detector Device Seismic Detector Storage High-capacity Storage Unit Processor Core Analyzer Hackware Relay Coupler [Grunt] Protection Improved Light Armor Plating Weapon Gatling Laser Energy Gun Gatling Laser Energy Cannon Guided Plasma Cannon Ballistic Gun Assault Rifle Ballistic Cannon Flak Cannon Launcher Mini Grenade Launcher Special Weapon Mining Laser Slashing Weapon Katana Build | -11 -10 -10 -10 -9 -8 -8 -8 -8 -7 -7 ------- Run | Yrd Mat Min Exi Min Mat Gar Mat Gar Fac Was Slots Evolved 6 | . . . . . 4 . . . 2 . Power . | . . . . . . . . . . . Propulsion 2 | . . . . . 1 . . . 1 . Utility 3 | . . . . . 2 . . . 1 . Weapon 1 | . . . . . 1 . . . . . Parts Attached 126 | 5 9 4 . 2 3 12 50 9 20 12 Power 11 | . 3 . . 1 1 1 4 . . 1 Engine 6 | . 3 . . 1 . . 2 . . . Core 5 | . . . . . 1 1 2 . . 1 Reactor . | . . . . . . . . . . . Propulsion 41 | 2 . 1 . . 1 5 15 3 12 2 Treads 22 | 2 . 1 . . 1 . 9 2 5 2 Leg 14 | . . . . . . 4 6 1 3 . Wheel . | . . . . . . . . . . . Hover 3 | . . . . . . . . . 3 . Flight 2 | . . . . . . 1 . . 1 . Utility 39 | 1 2 2 . . 1 1 20 3 4 5 Device 18 | 1 1 1 . . 1 . 10 . 1 3 Storage 3 | . 1 1 . . . . 1 . . . Processor 2 | . . . . . . . 1 . . 1 Hackware 7 | . . . . . . 1 1 2 2 1 Protection 9 | . . . . . . . 7 1 1 . Artifact . | . . . . . . . . . . . Weapon 35 | 2 4 1 . 1 . 5 11 3 4 4 Energy Gun 15 | . . . . . . 3 7 1 1 3 Energy Cannon 1 | . . . . . . . 1 . . . Ballistic Gun 9 | 2 3 . . 1 . 1 . . 1 1 Ballistic Cannon 2 | . . . . . . . 1 . 1 . Launcher 4 | . . 1 . . . . 2 1 . . Special Weapon 3 | . 1 . . . . . . 1 1 . Impact Weapon . | . . . . . . . . . . . Slashing Weapon 1 | . . . . . . 1 . . . . Piercing Weapon . | . . . . . . . . . . . Special Melee Weapon . | . . . . . . . . . . . Unidentified Prototypes 3 | . . . . . 1 . 2 . . . Corrupted Parts 1 | . . . . . . 1 . . . . System Corruption 1 | . . . . . . 1 . . . . Parts Lost 29 | . . 1 . . . 4 14 6 4 . Power . | . . . . . . . . . . . Propulsion 16 | . . 1 . . . 3 6 3 3 . Utility 6 | . . . . . . . 3 3 . . Weapon 7 | . . . . . . 1 5 . 1 . Highest Loss Streak 7 | . . 1 . . . 1 7 6 2 . To Critical Strikes . | . . . . . . . . . . . Average Backups 17 | 2 8 10 11 17 17 18 18 22 23 21 Power 2 | . 1 2 2 5 5 5 2 1 2 1 Propulsion 3 | . 3 6 4 6 4 4 4 5 2 2 Utility 5 | . . . 1 2 2 3 7 9 9 10 Weapon 4 | . 2 1 3 4 4 5 3 5 8 7 Tool/Special . | . . . . . . . . . . . Unused Backups 39 | 2 1 . . . 1 7 10 . 3 15 Power 9 | . 1 . . . . 3 2 . 1 2 Propulsion 13 | 2 . . . . 1 4 2 . 2 2 Utility 12 | . . . . . . . 5 . . 7 Weapon 5 | . . . . . . . 1 . . 4 Tool/Special . | . . . . . . . . . . . Average Slot Usage (%) 95 | . 93 100 89 98 85 94 97 98 99 89 Engine 3 | . 12 14 9 14 4 . . . . . Core 5 | . . . . . 4 9 7 9 7 6 Treads 21 | . 27 28 28 28 27 8 19 19 24 21 Leg 4 | . . . . . . 17 7 6 3 . Device 13 | . 15 14 14 14 14 18 10 3 12 17 Storage 9 | . 10 14 12 14 9 9 8 9 7 7 Hackware 4 | . . . . . . 4 5 6 10 2 Protection 4 | . . . . . . . 9 16 6 2 Energy Gun 9 | . . . . . . 9 16 21 10 15 Ballistic Gun 8 | . 22 14 13 26 26 12 . . 3 5 Ballistic Cannon 1 | . . . . . . . 4 . 3 . Launcher 3 | . . 14 9 . . 4 . 4 . . Slashing Weapon 1 | . . . . . . . 3 . 2 . Peak Build Rating 73 | 5 11 12 14 17 26 31 40 42 52 73 Average Rating 29 | 4 9 10 10 16 22 27 34 39 46 59 On Entrance 21 | . 4 11 10 11 17 26 31 40 40 49 Avg Prop Armor Cover (%) 15 | 25 29 . 29 . . 7 8 4 3 . Naked Turns . | . . . . . . . . . . . Heaviest Build 112 | 4 22 51 51 54 60 62 112 112 110 110 Greatest Support 140 | 3 40 40 40 40 60 60 60 60 96 140 Greatest Overweight (x) 12 | 1 . 1 1 1 . 5 3 2 12 1 Average Overweight (x) . | . . . . 1 . 1 1 1 1 . Largest Inventory Capacity 25 | 5 10 20 20 20 20 20 25 25 25 25 Average Capacity 19 | 5 8 14 17 20 20 20 20 25 25 25 Most Carried 25 | 5 10 12 20 19 20 20 25 25 25 25 Average Carried 18 | 2 8 10 12 18 18 19 19 23 24 24 Final Capacity 25 | 5 10 20 20 20 20 20 25 25 25 25 Final Carried 25 | 5 10 11 20 18 20 19 25 25 25 25 Class Distribution -------------------- 37% | Mutant 19% | Scavenger-Skirmisher 10% | Tank 7% | Scavenger-Mutant 6% | Bothacker-Tank 5% | Scavenger-Tank 5% | Skirmisher 4% | Bothacker-Mutant Dominant Class ---------------- Mutant | -10/Materials Mutant | -10/Mines Mutant | -10/Exiles Mutant | -9/Mines Skirmisher | -8/Materials Scavenger-Skirmisher | -8/Garrison Scavenger-Skirmisher | -8/Materials Bothacker-Tank | -8/Garrison Tank | -7/Factory Scavenger-Tank | -7/Waste Resources | -11 -10 -10 -10 -9 -8 -8 -8 -8 -7 -7 ----------- Run | Yrd Mat Min Exi Min Mat Gar Mat Gar Fac Was Matter Collected 3822 | 273 503 44 103 66 . 434 1277 158 516 448 Remotely 118 | . . . . . . . 118 . . . Salvage Created 5918 | 131 584 21 . 131 4 400 1862 285 895 1605 Parts 252 | 12 42 4 . 6 . 30 75 31 38 14 Haulers Intercepted 7 | . 2 . . . . . 4 . 1 . Recyclers Shooed 11 | . 5 . . . . . 3 . 3 . Parts Field Recycled . | . . . . . . . . . . . Retrieved Matter . | . . . . . . . . . . . Parts Self-Destructed . | . . . . . . . . . . . Prevented . | . . . . . . . . . . . Parts Restored . | . . . . . . . . . . . Kills | -11 -10 -10 -10 -9 -8 -8 -8 -8 -7 -7 ------- Run | Yrd Mat Min Exi Min Mat Gar Mat Gar Fac Was Combat Hostiles Destroyed 107 | . 11 5 . 3 . 14 41 12 15 6 Melee 2 | . . . . . . . 1 . 1 . Guns 77 | . 11 1 . 3 . 10 26 8 12 6 Cannons 7 | . . . . . . . 6 . 1 . AOE 21 | . . 4 . . . 4 8 4 1 . Classes Destroyed 17 | 2 4 1 . . . 3 3 3 . 1 Builder 3 | . . . . . . . 2 . 1 . Tunneler 3 | 3 . . . . . . . . . . Hauler 7 | . 2 . . . . . 4 . 1 . Recycler 6 | 1 2 . . . . . 1 . 2 . Watcher 5 | . 2 . . . . . 3 . . . Swarmer 20 | . 3 3 . . . 7 4 3 . . Cutter 3 | . . . . . . . . 3 . . Grunt 51 | . 8 . . 3 . 4 24 2 10 . Brawler 5 | . . . . . . 1 2 . 2 . Duelist 2 | . . . . . . 1 1 . . . Protector 2 | . . . . . . . 1 1 . . Sentry 9 | . . . . . . . 8 . 1 . Demolisher 1 | . . . . . . . . 1 . . Hunter 3 | . . . . . . 1 1 1 . . Programmer 4 | . . . . . . . . 1 3 . Compactor 6 | . . . . . . . . . . 6 Assembled 2 | . . 2 . . . . . . . . Best Kill Streak 9 | 2 4 3 . 3 . 3 9 3 4 1 Combat Bots Only 8 | . 3 3 . 3 . 3 8 3 4 1 Max Kills in Single Turn 2 | 1 1 2 . 1 . 2 2 2 2 1 Gunslinging 1 | . . . . . . 1 . . . . Exploded 2 | . . 2 . . . 2 2 2 1 . Melee 1 | . . . . . . . 1 . 1 . Uniques/NPCs Destroyed . | . . . . . . . . . . . Combat | -11 -10 -10 -10 -9 -8 -8 -8 -8 -7 -7 -------- Run | Yrd Mat Min Exi Min Mat Gar Mat Gar Fac Was Hostile Shots Fired 569 | . 57 45 . 15 . 62 229 59 102 . Missed 142 | . 11 16 . 7 . 18 49 12 29 . Hits 427 | . 46 29 . 8 . 44 180 47 73 . Melee 15 | . . 1 . . . 4 2 2 6 . Projectile 412 | . 46 28 . 8 . 40 178 45 67 . AOE 12 | . . 1 . . . . . 10 1 . Critical Strikes 8 | . . . . 1 . . 3 2 2 . Damage Taken 6820 | . 527 470 . 107 . 823 2570 971 1352 . Core 751 | . 94 120 . 15 . 85 267 70 100 . Absorbed by Shields 330 | . . . . . . 2 324 4 . . Ignored by Resistances 45 | . . . . . . . 45 . . . Regen/Repaired (Parts) 710 | . 241 . . . . . 294 . 115 60 Core Remaining (%) 43 | 100 . . . 8 . . . 23 . . Volleys Fired 373 | 8 66 7 . 6 4 43 98 24 43 74 Largest 3 | 2 2 2 . 2 3 3 3 3 3 3 Hottest 197 | 40 120 50 . 53 73 145 197 165 190 190 Shots Fired 787 | 16 113 9 . 12 12 86 222 50 106 161 Gun 666 | 16 107 3 . 12 12 69 171 43 78 155 Cannon 60 | . . . . . . . 39 1 20 . Launcher 40 | . . 6 . . . 17 12 4 1 . Special 21 | . 6 . . . . . . 2 7 6 Kinetic 304 | 16 107 3 . 12 12 44 43 . 39 28 Thermal 363 | . 6 . . . . 4 131 36 59 127 Explosive 40 | . . 6 . . . 17 12 4 1 . Electromagnetic 65 | . . . . . . 21 36 8 . . Robot Hit Streak 15 | 4 7 2 . 6 3 9 14 8 11 15 Robot Miss Streak 11 | 3 4 1 . 2 2 6 11 4 3 3 Penetration Max 1 | . . . . . . . . . 1 . Secondary Targets 7 | . 2 . . . . 2 2 1 . . Max Gunslinging Chain 1 | . 1 . . . . 1 1 1 . . Shots Hit Robots 524 | 8 66 2 . 9 6 38 170 22 75 128 Core Hits 304 | 5 28 6 . 4 2 24 136 23 47 29 Critical Kills 1 | . . . . . . . . . 1 . Critical Parts Destroyed 2 | . 1 . . . . 1 . . . . Critical Strikes 17 | . 1 . . . . 2 5 . 3 6 Burn 11 | . . . . . . . 4 . 1 6 Destroy 3 | . 1 . . . . 1 . . 1 . Blast 1 | . . . . . . . . . 1 . Corrupt 1 | . . . . . . 1 . . . . Sever 1 | . . . . . . . 1 . . . Melee Attacks 34 | . . . . . . . 21 8 5 . Impact . | . . . . . . . . . . . Slashing 34 | . . . . . . . 21 8 5 . Piercing . | . . . . . . . . . . . Sneak Attacks 3 | . . . . . . . 2 . 1 . Combat Hostiles . | . . . . . . . . . . . Follow-up Attacks . | . . . . . . . . . . . Damage Inflicted 13072 | 100 864 285 . 151 92 949 4757 922 2189 2763 Guns 8910 | 100 792 10 . 151 92 594 2673 424 1311 2763 Cannons 810 | . . . . . . . 499 32 279 . Explosions 2866 | . . 272 . . . 355 1309 466 464 . Melee 321 | . . . . . . . 251 . 70 . Ramming 93 | . . 3 . . . . 25 . 65 . Kinetic 2941 | 100 792 10 . 151 92 291 505 . 587 413 Thermal 6096 | . 72 . . . . 188 2015 389 1082 2350 Explosive 2671 | . . 272 . . . 239 1309 466 385 . Electromagnetic 950 | . . . . . . 231 652 67 . . Impact . | . . . . . . . . . . . Slashing 321 | . . . . . . . 251 . 70 . Piercing . | . . . . . . . . . . . Highest Corruption 5 | . . . . . . 1 1 5 1 1 Average Corruption 1 | . . . . . . 1 1 4 1 1 Corruption Purged . | . . . . . . . . . . . Corruption Blocked . | . . . . . . . . . . . Effects 70 | . . . . . . . 29 29 2 10 Message Errors 28 | . . . . . . . 13 11 2 2 Matter Fused 15 | . . . . . . . 5 5 . 5 Heat Flow Errors 7 | . . . . . . . 3 2 . 2 Energy Discharges 7 | . . . . . . . 4 2 . 1 Parts Fused 1 | . . . . . . . . 1 . . Data Loss (minor) 6 | . . . . . . . 1 5 . . Data Loss (major) 3 | . . . . . . . 3 . . . Misfires 2 | . . . . . . . . 2 . . Alerts 1 | . . . . . . . . 1 . . Overload Shots . | . . . . . . . . . . . Overflow Damage 279 | . 10 17 . . . 8 93 7 144 . Projectiles 25 | . 10 . . . . . . 7 8 . Explosions 154 | . . 17 . . . 8 33 . 96 . Melee 100 | . . . . . . . 60 . 40 . Knockbacks 17 | . . . . . . . 14 . 3 . Impact 2 | . . . . . . . 1 . 1 . Kinetic 14 | . . . . . . . 12 . 2 . Secondary 1 | . . . . . . . 1 . . . Self-Inflicted Damage 705 | . . 65 . . . 161 156 22 301 . Shots 17 | . . 2 . . . 4 5 1 5 . Rammed 10 | . . 1 . . . . 2 . 7 . Targets Rammed 14 | . . 1 . . . . 5 . 8 . Kicked 3 | . . . . . . . 3 . . . Crushed 1 | . . . . . . . . . 1 . Highest Temperature 453 | . 40 1 . 49 18 214 453 253 434 288 Average Temperature 95 | . 13 1 . 31 9 72 135 86 86 53 Received Heat Transfer 2235 | . 270 149 . 84 . 126 1213 6 387 . Effects 11 | . . . . . . . 11 . . . Shutdowns 1 | . . . . . . . 1 . . . Energy Bleed 2 | . . . . . . . 2 . . . Interference 3 | . . . . . . . 3 . . . Matter Decay 3 | . . . . . . . 3 . . . Short Circuit 2 | . . . . . . . 2 . . . Siege Activations . | . . . . . . . . . . . Martial Activations . | . . . . . . . . . . . Shielding Activations . | . . . . . . . . . . . Robots Disrupted . | . . . . . . . . . . . Combat Hostiles . | . . . . . . . . . . . Robots Corrupted . | . . . . . . . . . . . Combat Hostiles . | . . . . . . . . . . . Parts Fried 1 | . . . . . . 1 . . . . Impact Corruptions . | . . . . . . . . . . . Robots Melted . | . . . . . . . . . . . Combat Hostiles . | . . . . . . . . . . . Parts Melted 18 | . . . . . . . 9 2 7 . Heat Transferred 13350 | . 150 . . . . 274 4880 700 2068 5278 Parts Sabotaged . | . . . . . . . . . . . Parts Stolen . | . . . . . . . . . . . Parts Stripped . | . . . . . . . . . . . Power Chain Reactions 3 | . . . . . . 2 1 . . . Alert | -11 -10 -10 -10 -9 -8 -8 -8 -8 -7 -7 ------- Run | Yrd Mat Min Exi Min Mat Gar Mat Gar Fac Was Maximum Alert Level 3 | . . . . . . 3 2 3 2 1 Low Security (%) 44 | 100 100 100 . 100 100 23 32 . . 96 Level 1 21 | . . . . . . 40 29 6 41 3 Level 2 33 | . . . . . . 33 37 91 58 . Level 3 . | . . . . . . 2 . 2 . . Level 4 . | . . . . . . . . . . . Level 5 . | . . . . . . . . . . . High Security . | . . . . . . . . . . . Max Security . | . . . . . . . . . . . Peak Influence 779 | 10 103 86 . 72 19 720 566 779 646 219 Initial 408 | . . . . . 8 5 345 360 408 219 Average 265 | . 32 14 . 41 1 341 303 588 402 41 Influence Increases 3965 | 20 426 112 . 72 20 745 1225 499 846 . Destroy 0b10 Robot/C 1980 | . 220 60 . 60 . 280 800 240 320 . Destroy 0b10 Robot/NC 135 | 20 30 . . . . . 55 5 25 . Destroy Leader 414 | . 58 10 . 10 . 10 224 20 82 . Allied During Kill 7 | . . . . . . . . 1 6 . Successful Hack 106 | . 39 . . . 4 14 13 . 36 . Select Force Hacks 60 | . 30 . . . . . 30 . . . Disable Machine 270 | . 15 . . . 15 15 30 15 180 . Anti-Garrison Action 450 | . . . . . . 300 . 150 . . Destroy Structure 333 | . 4 42 . 2 1 81 73 23 107 . Lose Combat Pursuer 210 | . 30 . . . . 45 . 45 90 . Influence Decreases 3965 | 20 426 112 . 50 33 44 1380 275 997 628 Entered New Map 1358 | . . . . . 14 4 365 195 371 409 Time Decay 2127 | 20 426 112 . 50 19 . 725 . 556 219 Lost Part 280 | . . . . . . 40 140 60 40 . Lost Ally 50 | . . . . . . . . 20 30 . Purge Threat 150 | . . . . . . . 150 . . . Squads Dispatched 24 | . 4 . . . . . 10 . 10 . Investigation 7 | . 3 . . . . . 3 . 1 . Extermination 3 | . . . . . . . . . 3 . Reinforcement 6 | . 1 . . . . . 4 . 1 . Assault 4 | . . . . . . . 2 . 2 . Garrison 4 | . . . . . . . 1 . 3 . Intercept . | . . . . . . . . . . . Searches Triggered . | . . . . . . . . . . . Construction Impeded 2 | . . . . . . . 2 . . . Haulers Reinforced . | . . . . . . . . . . . Active Scanning Responses . | . . . . . . . . . . . Cargo Convoy Interrupts . | . . . . . . . . . . . Stealth | -11 -10 -10 -10 -9 -8 -8 -8 -8 -7 -7 --------- Run | Yrd Mat Min Exi Min Mat Gar Mat Gar Fac Was Distress Signals 5 | . 2 . . . . . 3 . . . Communications Jammed 15 | . . . . . . . . . 15 . Distress Signals 15 | . . . . . . . . . 15 . Times Spotted 166 | . 23 19 . 3 1 14 50 15 35 6 Peak Tracking Total 11 | . 5 11 . 3 1 4 8 8 6 2 Tactical Retreats 11 | . 2 1 . . . 1 . 1 6 . ECM-based Alert Blocks 1 | . . . . . . . . . 1 . Traps | -11 -10 -10 -10 -9 -8 -8 -8 -8 -7 -7 ------- Run | Yrd Mat Min Exi Min Mat Gar Mat Gar Fac Was Traps Triggered 20 | . 1 . . . . 8 5 5 1 . Indirectly . | . . . . . . . . . . . Trap Hack Attempts . | . . . . . . . . . . . Triggered . | . . . . . . . . . . . Disarmed . | . . . . . . . . . . . Reprogrammed . | . . . . . . . . . . . Reused . | . . . . . . . . . . . Traps Extracted . | . . . . . . . . . . . Installed . | . . . . . . . . . . . Triggered . | . . . . . . . . . . . Machines | -11 -10 -10 -10 -9 -8 -8 -8 -8 -7 -7 ---------- Run | Yrd Mat Min Exi Min Mat Gar Mat Gar Fac Was Machines Disabled 22 | . 1 . . . 1 4 2 2 12 . Max in Single Turn 7 | . 1 . . . 1 1 1 1 7 . Garrison Relay 4 | . . . . . . 3 . 1 . . Machines Repaired . | . . . . . . . . . . . Machines Dismantled . | . . . . . . . . . . . Machines Sabotaged . | . . . . . . . . . . . Overloaded Fab Kills . | . . . . . . . . . . . Hacking | -11 -10 -10 -10 -9 -8 -8 -8 -8 -7 -7 --------- Run | Yrd Mat Min Exi Min Mat Gar Mat Gar Fac Was Machines Accessed 34 | . 9 . 2 . 2 3 14 1 3 . Terminals 19 | . 6 . . . 1 3 8 1 . . Fabricators 1 | . . . . . . . . . 1 . Repair Stations 4 | . 1 . . . . . 2 . 1 . Recycling Units 4 | . 2 . . . . . 1 . 1 . Scanalyzers 2 | . . . . . . . 2 . . . Garrison Access 2 | . . . . . 1 . 1 . . . Total Hacks 112 | . 42 . 2 . 3 6 50 1 8 . Successful 63 | . 23 . 2 . 1 1 32 . 4 . Failed 48 | . 19 . . . 2 5 17 1 4 . Catastrophic 11 | . 4 . . . 1 2 2 1 1 . Database Lockouts 1 | . . . . . . . 1 . . . Manual 53 | . 23 . 1 . 1 1 23 1 3 . Terminals 60 | . 25 . . . 1 6 27 1 . . Fabricators 3 | . . . . . . . . . 3 . Repair Stations 22 | . 9 . . . . . 10 . 3 . Recycling Units 11 | . 8 . . . . . 1 . 2 . Scanalyzers 9 | . . . . . . . 9 . . . Garrison Access 5 | . . . . . 2 . 3 . . . Terminal Hacks 10 | . 3 . 2 . . 1 4 . . . Record 1 | . . . 1 . . . . . . . Robot Analysis 1 | . 1 . . . . . . . . . Prototype ID Bank 3 | . . . . . . . 3 . . . Unreport Threat 1 | . . . . . . . 1 . . . Locate Traps 1 | . 1 . . . . . . . . . Zone Layout 1 | . 1 . . . . . . . . . Garrison Registry 1 | . . . . . . 1 . . . . Proto ID Catalog 1 | . . . 1 . . . . . . . Fabricator Hacks 1 | . . . . . . . . . 1 . Load Schematic 1 | . . . . . . . . . 1 . Repair Station Hacks 19 | . 8 . . . . . 9 . 2 . Scan Component 10 | . 4 . . . . . 5 . 1 . Repair 9 | . 4 . . . . . 4 . 1 . Recycling Unit Hacks 3 | . 2 . . . . . 1 . . . Report Inventory 2 | . 1 . . . . . 1 . . . Retrieve Components 1 | . 1 . . . . . . . . . Scanalyzer 7 | . . . . . . . 7 . . . Insert Component 2 | . . . . . . . 2 . . . Analyze 2 | . . . . . . . 2 . . . Retrieve Study 3 | . . . . . . . 3 . . . Garrison Access Hacks 3 | . . . . . 1 . 2 . . . Unlock Access 2 | . . . . . 1 . 1 . . . Coupler Status 1 | . . . . . . . 1 . . . Unauthorized Hacks 20 | . 10 . . . . . 9 . 1 . Terminals 16 | . 8 . . . . . 8 . . . Assimilate 1 | . 1 . . . . . . . . . Botnet 4 | . 2 . . . . . 2 . . . Skim 11 | . 5 . . . . . 6 . . . Fabricators 1 | . . . . . . . . . 1 . Liberate 1 | . . . . . . . . . 1 . Repair Stations . | . . . . . . . . . . . Recycling Units 2 | . 2 . . . . . . . . . Mask 1 | . 1 . . . . . . . . . Tunnel 1 | . 1 . . . . . . . . . Scanalyzers . | . . . . . . . . . . . Garrison Access 1 | . . . . . . . 1 . . . Eject 1 | . . . . . . . 1 . . . Data Cores Recovered . | . . . . . . . . . . . Used . | . . . . . . . . . . . Hacking Detections 28 | . 8 . . . 2 3 12 1 2 . Full Trace Events 4 | . 1 . . . . 1 1 . 1 . Feedback Events . | . . . . . . . . . . . Feedback Blocked . | . . . . . . . . . . . Robot Schematics Acquired . | . . . . . . . . . . . Robots Built . | . . . . . . . . . . . Authchips . | . . . . . . . . . . . Time . | . . . . . . . . . . . Total Robot Build Rating . | . . . . . . . . . . . Part Schematics Acquired 1 | . . . . . . . 1 . . . Parts Built . | . . . . . . . . . . . Authchips . | . . . . . . . . . . . Time . | . . . . . . . . . . . Total Part Build Rating . | . . . . . . . . . . . Part Studies Acquired 2 | . . . . . . . 2 . . . Parts Repaired 9 | . 4 . . . . . 4 . 1 . Time 221 | . 104 . . . . . 104 . 13 . Parts Recycled . | . . . . . . . . . . . Recycled Matter . | . . . . . . . . . . . Retrieved Matter . | . . . . . . . . . . . Retrieved Components 10 | . 10 . . . . . . . . . Parts Scanalyzed 1 | . . . . . . . 1 . . . Part Schematics Acquired 1 | . . . . . . . 1 . . . Parts Damaged . | . . . . . . . . . . . Bothacking | -11 -10 -10 -10 -9 -8 -8 -8 -8 -7 -7 ------------ Run | Yrd Mat Min Exi Min Mat Gar Mat Gar Fac Was Used RIF Installer 2 | . . . . . . 1 . 1 . . Signal Jammer 1 | . . . . . . . . 1 . . Robots Hacked 12 | . . . . . . . . 1 5 6 Non-combat 2 | . . . . . . . . . 2 . Combat 10 | . . . . . . . . 1 3 6 Robot Hacks Applied 13 | . . . . . . . . 1 6 6 find_chute 1 | . . . . . . . . . 1 . ignore_targets 6 | . . . . . . . . . . 6 wipe_record 1 | . . . . . . . . . 1 . overwrite_iff 3 | . . . . . . . . 1 2 . formatsys_low 1 | . . . . . . . . . 1 . formatsys_high 1 | . . . . . . . . . 1 . Relay Couplers Released 20 | . . . . . . 12 4 4 . . Ejected 4 | . . . . . . . 4 . . . Machine Destruction 16 | . . . . . . 12 . 4 . . Attached 6 | . . . . . . 1 . 2 2 1 Fabnet Peak Effective % . | . . . . . . . . . . . Robots Rewired . | . . . . . . . . . . . Allies Hacked . | . . . . . . . . . . . Hacks Repelled . | . . . . . . . . . . . Allies | -11 -10 -10 -10 -9 -8 -8 -8 -8 -7 -7 -------- Run | Yrd Mat Min Exi Min Mat Gar Mat Gar Fac Was Total Allies 28 | . . 2 . . . . . 1 7 18 Largest Group 18 | . . 2 . . . . . . 3 18 Highest-Rated Group 434 | . . 48 . . . . . . 61 434 Highest-Rated Ally 35 | . . 31 . . . . . . 32 35 Total Orders . | . . . . . . . . . . . Ally Attacks 27 | . . 10 . . . . . 2 15 . Total Damage 448 | . . 156 . . . . . 44 248 . Kills 5 | . . 2 . . . . . 1 2 . Allies Corrupted . | . . . . . . . . . . . Allies Melted . | . . . . . . . . . . . Intel | -11 -10 -10 -10 -9 -8 -8 -8 -8 -7 -7 ------- Run | Yrd Mat Min Exi Min Mat Gar Mat Gar Fac Was Active Infowar (turns) 8510 | 54 1508 593 2137 114 188 1673 . . 1055 1188 Sensors 276 | . . . . . . . . . . 276 Terrain 1397 | . 1144 253 . . . . . . . . Seismic 6930 | 54 491 340 2137 114 188 1673 . . 1021 912 ECM 34 | . . . . . . . . . 34 . Robot Analysis Total 1 | . 1 . . . . . . . . . Derelict Logs Recovered 1 | . . 1 . . . . . . . . Drone Launches . | . . . . . . . . . . . Drone Recoveries . | . . . . . . . . . . . Exploration | -11 -10 -10 -10 -9 -8 -8 -8 -8 -7 -7 ------------- Run | Yrd Mat Min Exi Min Mat Gar Mat Gar Fac Was Turns Passed 13862 | 117 1508 593 2137 114 188 1673 3483 1226 1626 1197 Spaces Moved 6053 | 111 795 295 1219 40 100 672 1303 427 574 517 Core 696 | 111 228 . 357 . . . . . . . Treads 4470 | . 567 295 862 40 100 148 955 427 559 517 Legs 872 | . . . . . . 524 348 . . . Wheels . | . . . . . . . . . . . Hover 15 | . . . . . . . . . 15 . Flight . | . . . . . . . . . . . Fastest Speed 50 | 50 50 160 50 240 160 160 190 200 216 160 Average Speed 191 | 68 128 191 171 240 160 215 209 255 241 175 Slowest Speed 830 | 100 160 240 240 240 160 470 280 272 830 232 Overloaded Moves . | . . . . . . . . . . . Propulsion Burnouts . | . . . . . . . . . . . Robots Hopped . | . . . . . . . . . . . Potential Cave-ins . | . . . . . . . . . . . Cave-ins Triggered . | . . . . . . . . . . . Exploration Rate (%) 50 | 4 88 55 78 14 14 63 82 41 16 95 Regions Visited 10 Branch Regions 3 Pre-discovered Areas 2 | . 1 . 1 . . . . . . . Known Exits Taken 4 | . 1 . 1 . 1 . 1 . . . Unknown Exits Taken 3 | 1 . 1 . 1 . . . . . . Scrap Searched 1 | . . 1 . . . . . . . . Spaces Dug 41 | . 3 21 . . . . 11 2 4 . Terrain Destroyed 355 | . 3 50 . 2 1 73 94 15 115 2 Melee 17 | . . . . . . . 11 2 4 . Projectile 14 | . 3 . . 2 1 . . 1 5 2 AOE 324 | . . 50 . . . 73 83 12 106 . Terrain Rammed . | . . . . . . . . . . . Walls Destroyed . | . . . . . . . . . . . Machines Disabled . | . . . . . . . . . . . Actions | -11 -10 -10 -10 -9 -8 -8 -8 -8 -7 -7 --------- Run | Yrd Mat Min Exi Min Mat Gar Mat Gar Fac Was Total 7592 | 136 1159 314 1277 47 121 829 1825 505 710 669 Wait 525 | 2 255 1 . . . 39 182 12 10 24 Move 6044 | 110 794 294 1218 39 99 671 1302 426 574 517 Hop . | . . . . . . . . . . . Pick Up 187 | 6 15 4 30 . 9 10 79 6 17 11 Fast Attach 53 | 5 3 . 2 . 1 7 20 2 9 4 Attach 43 | 1 4 1 . 2 2 2 17 5 6 3 Detach 15 | 2 . . . . . 1 4 . 3 5 Swap 110 | . 12 3 1 . 1 11 41 12 18 11 Drop 152 | 2 10 3 26 . 5 14 56 . 16 20 Fire 373 | 8 66 7 . 6 4 43 98 24 43 74 Melee 34 | . . . . . . . 21 8 5 . Ram . | . . . . . . . . . . . Kick 3 | . . . . . . . 3 . . . Crush 11 | . . 1 . . . . 2 . 8 . Escape Stasis 41 | . . . . . . 31 . 10 . . Rewire 1 | . . . . . . . . . 1 . Trap . | . . . . . . . . . . . Miscellaneous . | . . . . . . . . . . . Route ------- -11/Scrapyard -10/Materials (discovered 6 exits: *Mat x3 / *Min x2 / [Sub]) -10/Mines (discovered 3 exits: *Mat x2 / *Exi) -10/Exiles (discovered 2 exits: *Min x2) -9/Mines -8/Materials (discovered 2 exits: Fac / Gar) -8/Garrison (discovered 4 exits: *Fac x3 / *Mat) -8/Materials (discovered 6 exits: *Fac x3 / [*Sto x2] / Gar) -8/Garrison (discovered 2 exits: *Fac x2) -7/Factory -7/Waste (discovered 1 exit: [*Fac]) History --------- Turn | Location | Event 4 | -11/Scrapyard | Discovered new exit (range 16) 118 | -11/Scrapyard | Entered Materials 135 | -10/Materials | Discovered new exit (range 6) 338 | -10/Materials | Build established: Mutant 553 | -10/Materials | Discovered new exit (range 16) 690 | -10/Materials | Discovered new exit (range 13) 696 | -10/Materials | Discovered new exit (range 9) 904 | -10/Materials | Repaired Lgt. Treads 931 | -10/Materials | Repaired Lgt. Treads 959 | -10/Materials | Repaired Lgt. Treads 1045 | -10/Materials | Repaired Lgt. Treads 1136 | -10/Materials | Discovered new exit (range 15) 1361 | -10/Materials | Learned 4 Subcaves zone layouts 1460 | -10/Materials | Learned location of 1 exit from Storage 1492 | -10/Materials | Learned Storage stockpile data 1516 | -10/Materials | Learned location of 2 exits from Subcaves 1530 | -10/Materials | Loaded intel: 17 trap records 1536 | -10/Materials | Learned Recycling recycling unit intel 1551 | -10/Materials | Learned Materials trap positions 1575 | -10/Materials | Learned location of 2 exits from Mines 1607 | -10/Materials | Identified exit to Mines 1607 | -10/Materials | Learned location of 1 exit from Materials 1626 | -10/Materials | Entered Mines 1627 | -10/Mines | Identified exit to Materials 1698 | -10/Mines | Deemed a non-threat by the Exiles lab entrance 1698 | -10/Mines | Discovered new exit (range 5) 1902 | -10/Mines | A weapon hastily lodged in a ceiling crevice suddenly fell to the ground 1990 | -10/Mines | Assembled infested the area 1995 | -10/Mines | Assisted by a Guerilla fighting off Assembled 2025 | -10/Mines | Core integrity fell below 50% 2049 | -10/Mines | Lost 3 allies 2189 | -10/Mines | Core integrity fell below 20% 2219 | -10/Mines | Entered Exiles 2220 | -10/Exiles | Identified exit to Mines 2279 | -10/Exiles | Met 8R-AWN 2320 | -10/Exiles | Met EX-HEX 2404 | -10/Exiles | Met EX-BIN 2433 | -10/Exiles | Aligned with FarCom system 2435 | -10/Exiles | Given EX-Vault access code 2495 | -10/Exiles | Opened EX-Vault 2563 | -10/Exiles | Warned to stay clear of 0b10 Research branches 2635 | -10/Exiles | Found Firepult 3074 | -10/Exiles | Met EX-DEC 3084 | -10/Exiles | Learned location of Zion (-7) 3755 | -10/Exiles | Visited The Gauntlet 3816 | -10/Exiles | Found Gui. Plasma Cannon 3818 | -10/Exiles | Found Modified TNC 4356 | -10/Exiles | Stole three prototypes: Modified TNC, Gui. Plasma Cannon, Firepult 4356 | -10/Exiles | Entered Mines 4456 | -9/Mines | Discovered new exit (range 6) 4470 | -9/Mines | Entered Materials 4470 | -8/Materials | Evolved 4 slots: Propulsion x1, Utility x2, Weapon x1 4471 | -8/Materials | Identified exit to Factory 4472 | -8/Materials | Loaded intel: 16 trap records 4647 | -8/Materials | Identified exit to Garrison 4658 | -8/Materials | Entered Garrison 4684 | -8/Garrison | Triggered checkpoint 4767 | -8/Garrison | Build established: Skirmisher 4868 | -8/Garrison | Triggered checkpoint 4887 | -8/Garrison | Triggered checkpoint 5164 | -8/Garrison | Triggered checkpoint 5299 | -8/Garrison | Discovered exit to Factory (range 15) 5349 | -8/Garrison | Installed Relay Interface Framework 5383 | -8/Garrison | Build established: Scavenger-Skirmisher 5435 | -8/Garrison | Garrison Relay disabled 5710 | -8/Garrison | Triggered checkpoint 5837 | -8/Garrison | Discovered exit to Factory (range 12) 5927 | -8/Garrison | Triggered checkpoint 5962 | -8/Garrison | Garrison Relay disabled 5990 | -8/Garrison | Discovered exit to Factory (range 66) 5990 | -8/Garrison | Discovered exit to Factory (range 34) 5990 | -8/Garrison | Discovered exit to Factory (range 80) 5990 | -8/Garrison | Discovered new exit (range 52) 6210 | -8/Garrison | Garrison Relay disabled 6282 | -8/Garrison | Triggered checkpoint 6331 | -8/Garrison | Entered Materials 7044 | -8/Materials | Repaired Hcp. Storage Unit 7146 | -8/Materials | Repaired Lgt. Armor Plating 7173 | -8/Materials | Repaired Lgt. Treads 7200 | -8/Materials | Repaired Seismic Detector 7514 | -8/Materials | Build established: Scavenger-Mutant 7889 | -8/Materials | Build established: Scavenger-Skirmisher 7918 | -8/Materials | Discovered new exit (range 3) 8233 | -8/Materials | Discovered exit to Factory (range 3) 8235 | -8/Materials | Discovered new exit (range 7) 8280 | -8/Materials | Central database locked down 8382 | -8/Materials | Destroyed 8 combat bots 8410 | -8/Materials | Lost 7 parts (3n1u3w) 8640 | -8/Materials | Build established: Mutant 9130 | -8/Materials | Discovered exit to Factory (range 15) 9131 | -8/Materials | First assault squad dispatched 9188 | -8/Materials | Core integrity fell below 50% 9229 | -8/Materials | Lost 3 parts (2u1w) 9487 | -8/Materials | Learned location of 1 exit from Recycling 9600 | -8/Materials | Learned location of 1 exit from Lower Caves 9643 | -8/Materials | Learned Factory recycling unit intel 9661 | -8/Materials | Garrison activated, responded to threat 9725 | -8/Materials | Learned Factory trap positions 9793 | -8/Materials | Identified exit to Garrison 9814 | -8/Materials | Entered Garrison 9977 | -8/Garrison | Triggered checkpoint 10037 | -8/Garrison | Triggered checkpoint 10061 | -8/Garrison | Triggered checkpoint 10130 | -8/Garrison | Lost 6 parts (3n3u) 10324 | -8/Garrison | Build established: Tank 10326 | -8/Garrison | Discovered exit to Factory (range 10) 10393 | -8/Garrison | Triggered checkpoint 10450 | -8/Garrison | Garrison Relay disabled 10454 | -8/Garrison | Triggered checkpoint 10740 | -8/Garrison | Expanded RIF knowledge: Signal Jamming 10746 | -8/Garrison | Build established: Bothacker-Tank 10808 | -8/Garrison | Discovered exit to Factory (range 10) 11040 | -8/Garrison | Entered Factory 11040 | -7/Factory | Evolved 2 slots: Propulsion x1, Utility x1 11041 | -7/Factory | Loaded intel: 83 trap records 11042 | -7/Factory | Loaded intel: 6 recycling unit locations 11042 | -7/Factory | FarCom data flow suspended 11455 | -7/Factory | Repaired Lgt. Treads+ 11840 | -7/Factory | First assault squad dispatched 11942 | -7/Factory | Garrison activated, responded to threat 12434 | -7/Factory | Build established: Tank 12622 | -7/Factory | Discovered new exit (range 14) 12666 | -7/Factory | Sucked down chute 12666 | -7/Factory | Entered Waste 12681 | -7/Waste | Spotted C-40 Crusher 12681 | -7/Waste | Spotted C-40 Crusher 12740 | -7/Waste | Spotted C-40 Crusher 12748 | -7/Waste | Spotted C-40 Crusher 12794 | -7/Waste | Spotted C-40 Crusher 12801 | -7/Waste | Spotted C-40 Crusher 13036 | -7/Waste | Destroyed C-40 Crusher 13088 | -7/Waste | Destroyed C-40 Crusher 13234 | -7/Waste | Destroyed C-40 Crusher 13274 | -7/Waste | Destroyed C-40 Crusher 13333 | -7/Waste | Destroyed C-40 Crusher 13355 | -7/Waste | Build established: Scavenger-Tank 13384 | -7/Waste | Destroyed C-40 Crusher 13457 | -7/Waste | Discovered new exit (range 16) 13532 | -7/Waste | Warlord forces began an assault 13683 | -7/Waste | Found Damper Plating 13863 | -7/Waste | Self-destructed Last Messages --------------- 13587_ K8-V4E(m) fixes Adv. Sensor Array. 13616_ System corrupted: Matter fused (-6). 13663_ Acquired Arm. Treads. 13667_ Acquired 36 matter. 13671_ 9R-OGQ(m) repairs Gauss Rifle. 13678_ Dropped Seismic Detector. 13679_ Acquired Antimatter Reactor. 13682_ Dropped Katana. 13682_ Dropped Gatling Laser. 13683_ Dropped Hvy. Treads. 13683_ Acquired Damper Plating. 13687_ Dropped Hvy. Particle Gun. 13688_ Dropped Arm. Treads. 13688_ Acquired Hvy. Treads. 13779_ System corrupted: Matter fused (-7). 13847_ Dropped Thermic Laser. 13847_ Dropped Mni. Grenade Launcher. 13856_ Acquired Beamcaster. 13861_ Dropped Gauss Rifle. 13862_ Acquired Beamcaster. Map ----- +----------------------------------------------------+ | | | | | | | | | | | | | | | ?????????????????????????????????????????????????? | | ?????????????????????????????????????????????????? | | ??????????????????????????#??????????????????????? | | ??????????????????????????"#####?????????????????? | | ?????????????????????????? ]]]]#?????????????????? | | ?????????????????????????? #?????????????????? | | ?????????????????????????? #?????????????????? | | ???????????????????????#??# #?????????????????? | | ???????????????????????# ?# #?????????????????? | | ???????????????????????# ## #?????????????????? | | ???????????????????????# #?????????????????? | | ???????????????????????###[### #?????????????????? | | ?????????????????????????#]#?????????????????????? | | ????????????????????????##s###?#?????????????????? | | ????????????????????????#sg [# #?????????????????? | | ????????????????????????#[ gg# #?????????????????? | | ????????????????????????# gd #?????????????????? | | ????????????????????????#sbgs###?????????????????? | | ????????????????????????#@b g#???????????????????? | | ????????????????????????##sd##???????????????????? | | ?????????????????????????#s #????????????????????? | | ????????????????????????## m##???????????????????? | | ????????????????????????# #???????????????????? | | ########??????????????###""";###?????????????????? | | #??????????????# #?????????????????? | | #??????????????# #?????????????????? | | #??????????????# #?????????????????? | | #??????????????# #?????????????????? | | #??????????????# #?????????????????? | | #??????????????# #?????????????????? | | #??????????????# #?????????????????? | | #????######????# #?????????????????? | | # ###????# #????### ###?????????????????? | | # #??????# #??????# #???????????????????? | | # #??????# #??????# #???????????????????? | | # #??????# #??????# #???????????????????? | | #= *######## #??????# ###?????????????????? | | [ [ %! #??????# #?????????????????? | | / ]" #??????# #?????????????????? | | !% #??????# #?????????????????? | | !! #??????# #?????????????????? | | # ######## #??????# ###?????????????????? | | # #??????# #??????# #??############?????? | +----------------------------------------------------+ Best States ------------- Heat Dissipation 61 Coolant Potential 50 Energy Generation 17 Energy Capacity 300 Matter Stores 300 Matter Capacity 300 Sight Range 16 Robot Scan Range 16 Terrain Scan Range 16 Terrain Scan Density 10 ECM Strength 2 Additional Mass Support 9 Armor Coverage 375 Resistance: TH 10 Evasion (%) 50 Melee Accuracy 6 Core Analysis 6 Recoil Reduction 4 Particle Charging 15 Defensive Hacking 10 Relay Coupler Types 3 Relay Coupler Value 36 Authchip Count 1 Item Schematics ----------------- Cld. Airjet | -8/Materials | Scanalyzed Robot Schematics ------------------ None Fabricated ------------ Nothing Repaired ---------- Lgt. Treads | 30% | -10/Materials Lgt. Treads | 59% | -10/Materials Lgt. Treads | 69% | -10/Materials Lgt. Treads | 69% | -10/Materials Hcp. Storage Unit | 71% | -8/Materials Lgt. Armor Plating | 37% | -8/Materials Lgt. Treads | 42% | -8/Materials Seismic Detector | 35% | -8/Materials Lgt. Treads | 17% | -7/Factory Studied --------- Lgt. Treads | -8/Materials | Hacked Flak Cannon | -8/Materials | Hacked Alien Tech Used ----------------- None Achievements -------------- Assimilation Complete Dramatic Entrance Hack The Planet Infiltrator Morally Flexible Taming Of The Crushers Thread The Needle Around The Corner You Will Be Upgraded Challenges ------------ None Game ------ Seed ShiftRagnarokRedirector Manual? 0 Play Time 03:12:28 Cumulative 80.7 hours Start 2025.11.15 @ 23:30:59 End 2025.12.06 @ 20:36:11 Sessions 13 Manual Loads 0 Difficulty Rogue Special Mode None Game No. 32 Rogue 31 Adventurer 1 Explorer 0 Win Type - Total 2 Types 1/0/1/0/0/0/0/0/0/0 Lore% 37 Gallery% 37 Achievement% 37 Wizard Run 0 Options --------- Layout 2 ASCII 0 Keyboard 1 Movement Vi Keybinds 1 Fullscreen 2 Font 32/Terminus Map View 50x44 Zoom Use 0% Tactical HUD 1 Map Filters NONE Filters NONE Steam 1 RUN: a53b329d-6683-483e-ae74-70ab1affb591